bitfinex-derivatives/quotes_ETHF0:USTF0_20260203
["timestamp","ask_amount","ask_price","bid_price","bid_amount"]
[1770097337854,2.44519263,2325.3,2323.9,2.40910009]
[1770097338154,2.44519263,2325.3,2323.8,4.306]
[1770097338155,2.66042263,2325.3,2323.8,4.306]
[1770097338454,2.66042263,2325.3,2323.8,6.71510009]
[1770097340156,2.66042263,2325.3,2323.9,2.45876894]
[1770097340550,4.304,2325.2,2323.9,2.45876894]
[1770097340757,2.41048874,2325.0,2323.9,2.45876894]
[1770097349355,2.62574874,2325.0,2323.9,2.45876894]
[1770097349562,2.41048874,2324.8,2323.6,2.45876894]
[1770097350963,2.41048874,2324.5,2323.4,2.46216393]
[1770097351161,2.41048874,2324.1,2323.4,0.00339499]
[1770097351355,2.41048874,2324.1,2322.9,2.45876894]
[1770097352358,2.41522519,2324.1,2322.9,2.46260168]
[1770097358268,2.41048874,2323.7,2322.9,0.00383274]
[1770097358969,2.62585874,2323.7,2322.4,2.45876894]
[1770097360068,2.62585874,2323.7,2322.4,2.46407679]
[1770097368282,2.41048874,2323.2,2321.9,4.09812246]
[1770097368484,2.41048874,2322.7,2321.7,2.45876894]
[1770097368683,2.41048874,2322.5,2321.7,2.45876894]
[1770097368989,2.41048874,2322.5,2321.1,2.45876894]
[1770097369186,2.41048874,2322.5,2321.3,2.45876894]
[1770097369387,2.41048874,2322.5,2321.3,2.46296453]
[1770097369587,2.41048874,2322.5,2321.3,0.00419559]
[1770097369789,2.41048874,2322.5,2321.5,2.45876894]
[1770097370091,2.32398568,2322.4,2321.7,2.45876894]
[1770097370389,2.3272851,2322.4,2321.7,2.45876894]
[1770097370590,2.3272851,2322.4,2321.8,4.09812246]
[1770097372194,2.3272851,2322.4,2321.7,2.45876894]
[1770097372496,2.3272851,2322.4,2321.8,4.09812246]
[1770097373595,2.3272851,2322.4,2321.8,6.43505665]
[1770097374496,2.3272851,2322.4,2321.9,4.09812246]
[1770097374899,2.3272851,2322.4,2321.9,6.43505665]
[1770097375300,2.3272851,2322.4,2321.9,4.09812246]
[1770097376303,2.3272851,2322.4,2321.7,2.33693419]
[1770097376496,2.3272851,2322.4,2321.8,4.09812246]
[1770097377700,2.3272851,2322.4,2321.4,2.33693419]
[1770097377900,2.3272851,2322.4,2321.5,2.33693419]
[1770097378198,2.3272851,2322.4,2321.6,2.33693419]
[1770097379501,2.3272851,2322.4,2321.4,2.33693419]
[1770097379802,2.3272851,2322.4,2321.4,6.43505665]
[1770097380001,2.3272851,2322.4,2321.6,2.33693419]
[1770097380296,2.3272851,2322.4,2321.4,2.33693419]
[1770097380500,2.50346594,2322.2,2321.0,2.33693419]
[1770097380694,2.71897594,2322.2,2321.0,2.33693419]
[1770097380895,2.50346594,2321.7,2320.2,2.33693419]
[1770097381098,2.50346594,2321.5,2320.2,2.33693419]
[1770097381300,2.50346594,2321.5,2320.4,2.33693419]
[1770097381501,2.50346594,2321.5,2320.4,2.34014313]
[1770097382300,5.17718401,2321.5,2320.4,0.00320894]
[1770097382603,2.50346594,2321.4,2320.6,2.33693419]
[1770097382803,9.88746594,2321.4,2320.6,2.33693419]
[1770097383004,2.50346594,2321.3,2320.4,0.00320894]
[1770097383902,2.50346594,2321.3,2320.5,6.43505665]
[1770097384403,2.50346594,2321.3,2320.4,0.00320894]
[1770097386795,7.59959,2321.4,2319.4,2.33693419]
[1770097386796,2.50346594,2321.0,2319.4,2.33693419]
[1770097387103,2.50346594,2320.6,2319.4,2.33693419]
[1770097387304,2.50346594,2320.4,2319.4,2.33693419]
[1770097387604,2.50346594,2320.4,2319.5,6.43505665]
[1770097387800,0.00379092,2320.4,2319.5,6.43868003]
[1770097388097,0.00379092,2320.4,2319.9,6.43505665]
[1770097388304,2.50725686,2320.4,2319.9,6.43505665]
[1770097388504,0.00379092,2320.4,2320.1,4.09812246]
[1770097388704,0.00379092,2320.4,2319.9,6.43505665]
[1770097389102,2.50725686,2320.4,2320.1,4.09812246]
[1770097389415,0.00379092,2320.4,2319.6,2.33693419]
[1770097390105,0.8734827,2321.0,2319.6,2.33693419]
[1770097390309,5.18727362,2321.1,2319.6,2.33693419]
[1770097390510,0.87727362,2321.0,2319.6,2.33693419]
[1770097390711,7.95291347,2321.4,2319.8,2.33693419]
[1770097391109,0.86797092,2321.4,2319.8,2.33693419]
[1770097391310,0.86491347,2321.3,2319.8,2.33693419]
[1770097393010,4.71905745,2321.4,2319.8,2.33693419]
[1770097393211,5.62770937,2321.4,2319.8,2.33693419]
[1770097393711,0.90865192,2321.3,2319.8,2.33693419]
[1770097394510,0.00305745,2321.4,2319.8,2.55266419]
[1770097394914,1.01015045,2321.4,2319.8,2.55266419]
[1770097397012,1.01015045,2321.4,2320.0,2.33693419]
[1770097403419,1.01015045,2321.4,2320.0,2.55264419]
[1770097407331,1.01015045,2321.4,2320.1,2.46096728]
[1770097408523,3.51732418,2321.4,2320.1,2.46096728]
[1770097409421,3.51732418,2321.4,2320.2,2.46096728]
[1770097411524,0.00305745,2321.4,2320.5,2.46096728]
[1770097412327,0.00305745,2321.4,2320.6,2.46096728]
[1770097412528,0.99373042,2321.4,2320.6,2.46096728]
[1770097412826,0.98687078,2321.2,2320.3,2.46096728]
[1770097413028,0.98687078,2321.0,2320.0,2.46096728]
[1770097413223,0.98687078,2320.7,2319.5,6.86860945]
[1770097413427,0.98687078,2320.7,2319.6,2.46096728]
[1770097413628,0.98687078,2320.6,2319.6,2.46096728]
[1770097414125,2.50717373,2320.8,2319.6,2.46096728]
[1770097414329,2.50717373,2321.0,2319.8,0.21573]
[1770097414531,13.708,2321.1,2319.9,2.46096728]
[1770097414731,0.96001656,2321.0,2319.9,2.46096728]
[1770097418529,13.708,2321.1,2319.9,2.46096728]
[1770097419127,16.21517373,2321.1,2320.0,2.46096728]
[1770097419328,13.708,2321.1,2320.0,2.46096728]
[1770097419629,16.21517373,2321.1,2320.0,2.46096728]
[1770097421130,13.708,2321.1,2320.0,2.46096728]
[1770097421330,16.21517373,2321.1,2320.0,2.46096728]
[1770097421630,17.12202551,2321.1,2320.0,2.46096728]
[1770097422431,12.81102551,2321.1,2320.0,2.46096728]
[1770097423332,3.41402551,2321.1,2320.0,2.46096728]
[1770097423932,0.90685178,2321.1,2320.1,2.46096728]
[1770097424328,2.64187354,2321.1,2320.2,2.46096728]
[1770097424530,2.50717373,2321.3,2320.7,1.73502176]
[1770097424832,0.00305745,2321.4,2320.8,2.46096728]
[1770097428031,3.43320158,2322.0,2320.8,2.67660728]
[1770097428334,0.9290853,2321.9,2320.8,2.67660728]
[1770097429033,0.93328802,2321.9,2320.8,2.67660728]
[1770097431936,0.00420272,2321.9,2321.0,2.3074418]
[1770097432337,9.409,2322.5,2321.1,2.3074418]
[1770097432636,0.92461622,2322.4,2321.2,2.3074418]
[1770097432836,0.91969262,2322.3,2321.2,2.3074418]
[1770097433130,1.13519262,2322.3,2321.2,2.3074418]
[1770097433331,0.91969262,2322.2,2321.2,2.31192588]
[1770097436632,0.93614599,2322.0,2321.2,2.31192588]
[1770097442038,0.00457488,2322.3,2321.2,2.31192588]
[1770097442245,9.40057488,2322.3,2321.2,2.31192588]
[1770097442539,10.32878618,2322.3,2321.2,2.31192588]
[1770097442743,0.9282113,2322.2,2321.2,2.31192588]
[1770097443440,0.00457488,2322.3,2321.2,2.31192588]
[1770097446650,0.93226804,2322.3,2321.2,2.31192588]
[1770097446852,0.00457488,2322.3,2321.2,2.31192588]
[1770097449847,2.50717373,2322.6,2321.5,2.3074418]
[1770097450154,4.31,2322.7,2321.7,2.3074418]
[1770097451250,4.31556204,2322.7,2321.7,2.3074418]
[1770097451751,0.92970713,2322.6,2321.7,2.3074418]
[1770097452550,4.31556204,2322.7,2321.7,2.3074418]
[1770097454053,5.2425145,2322.7,2321.7,2.3074418]
[1770097456456,4.31556204,2322.7,2321.7,2.3074418]
[1770097457562,0.9273322,2322.6,2321.7,2.3074418]
[1770097462867,0.00556204,2322.7,2321.7,2.3074418]
[1770097463066,0.00556204,2322.7,2321.8,2.4844856]
[1770097464661,2.50717373,2323.1,2321.8,2.7000256]
[1770097464965,9.362,2323.2,2322.1,2.4844856]
[1770097465761,9.36753999,2323.2,2322.1,2.4844856]
[1770097468567,10.27397791,2323.2,2322.1,2.4844856]
[1770097470663,9.36753999,2323.2,2322.1,2.4844856]
[1770097470868,0.00553999,2323.2,2322.5,2.4844856]
[1770097471067,0.90007074,2323.5,2322.5,2.4844856]
[1770097472271,0.90321799,2323.5,2322.5,2.4844856]
[1770097473274,0.89740441,2323.4,2322.5,2.4844856]
[1770097477975,4.24214788,2323.5,2322.5,2.4844856]
[1770097477976,2.51032098,2323.5,2322.5,2.4844856]
[1770097478671,0.00314725,2323.5,2322.5,2.4844856]
[1770097479366,0.89338955,2323.5,2322.5,2.4844856]
[1770097481967,0.00314725,2323.5,2322.5,2.4844856]
[1770097487177,0.57472835,2323.5,2322.5,2.4844856]
[1770097487470,0.5715811,2323.4,2322.5,2.4844856]
[1770097488176,3.07875483,2323.4,2322.5,2.4844856]
[1770097488376,0.5715811,2323.3,2322.3,2.4844856]
[1770097488577,0.5715811,2323.2,2322.3,2.4844856]
[1770097489077,9.301,2323.1,2322.3,2.4844856]
[1770097490575,2.50717373,2323.3,2322.3,2.4844856]
[1770097490877,2.50717373,2323.4,2322.3,2.4844856]
[1770097491772,11.81232098,2323.5,2322.4,2.33010128]
[1770097492172,11.81232098,2323.5,2322.4,4.88408735]
[1770097492377,11.81232098,2323.5,2322.5,2.33010128]
[1770097493169,2.50717373,2323.4,2322.5,2.33010128]
[1770097493377,11.81232098,2323.5,2322.5,2.33010128]
[1770097493676,2.51032098,2323.5,2322.5,2.33010128]
[1770097494271,2.50717373,2323.4,2322.5,2.33010128]
[1770097500381,2.50717373,2323.4,2322.6,2.33010128]
[1770097500583,1.73131866,2323.0,2322.6,2.33010128]
[1770097500788,4.23849239,2323.2,2322.6,2.33010128]
[1770097501086,2.50717373,2323.0,2322.4,2.33010128]
[1770097501684,2.50717373,2323.2,2322.6,2.33010128]
[1770097501984,11.83317373,2323.2,2322.6,2.33010128]
[1770097502287,2.50717373,2323.2,2322.6,2.33010128]
[1770097502488,2.50717373,2323.3,2322.6,2.33010128]
[1770097502788,37.75436947,2323.4,2322.6,2.33010128]
[1770097502789,11.84917373,2323.4,2322.6,2.33010128]
[1770097508694,1.73131866,2323.3,2322.6,2.33010128]
[1770097509193,11.84917373,2323.4,2322.6,2.33010128]
[1770097511896,12.46240184,2323.4,2322.6,2.33010128]
[1770097514901,0.61556656,2323.2,2322.4,2.55398607]
[1770097515100,0.61556656,2323.0,2322.3,2.33010128]
[1770097515302,9.488,2322.9,2322.3,2.33010128]
[1770097516302,10.10356656,2322.9,2322.3,2.33010128]
[1770097517299,9.488,2322.9,2322.3,2.33010128]
[1770097517603,9.501,2323.1,2322.4,2.33010128]
[1770097519299,4.87803039,2323.0,2322.4,2.33010128]
[1770097521205,4.87803039,2323.0,2322.0,2.42033994]
[1770097526406,2.37085666,2323.0,2322.0,2.42033994]
[1770097527312,0.64528728,2322.9,2322.0,2.42033994]
[1770097531419,12.00817373,2323.1,2321.9,4.28530473]
[1770097531420,2.50717373,2323.1,2322.4,2.42033994]
[1770097531720,37.75436947,2323.2,2322.4,2.42033994]
[1770097531721,2.50717373,2323.2,2322.4,2.42033994]
[1770097533620,3.14817214,2323.2,2322.4,2.42033994]
[1770097533921,0.64099841,2323.0,2322.2,2.42033994]
[1770097534421,1.73131866,2322.9,2322.2,2.42033994]
[1770097534821,0.64099841,2323.0,2322.2,2.42033994]
[1770097536021,4.23849239,2323.1,2322.2,2.42033994]
[1770097536022,1.73131866,2322.9,2322.2,2.42033994]
[1770097536223,1.73131866,2322.7,2322.2,2.42033994]
[1770097536421,1.73131866,2322.7,2322.0,2.42033994]
[1770097537022,11.30031866,2322.7,2322.0,2.42033994]
[1770097537818,11.89167363,2322.7,2322.0,2.42033994]
[1770097538023,2.32267363,2322.3,2321.6,2.42033994]
[1770097538423,37.75436947,2322.6,2321.9,2.42033994]
[1770097538424,2.50717373,2322.6,2321.9,2.42033994]
[1770097538719,12.07617373,2322.7,2321.9,2.42033994]
[1770097539417,1.73131866,2322.6,2321.9,2.42033994]
[1770097540222,2.30120189,2322.6,2321.9,2.42033994]
[1770097541229,2.26796604,2322.4,2321.5,2.42033994]
[1770097543032,1.73131866,2322.4,2321.5,2.42033994]
[1770097543221,4.80546887,2322.6,2321.5,2.42033994]
[1770097543422,12.07617373,2322.7,2321.9,2.42033994]
[1770097543729,9.592,2322.8,2322.1,2.42033994]
[1770097543922,9.595,2322.8,2322.1,2.42033994]
[1770097544121,2.50717373,2323.0,2322.3,2.42033994]
[1770097544326,9.596,2322.9,2322.3,2.42033994]
[1770097544529,2.50717373,2323.2,2322.3,2.42033994]
[1770097544823,12.10817373,2323.2,2322.3,2.42033994]
[1770097548429,2.50717373,2323.1,2322.3,2.42033994]
[1770097549131,13.83949239,2323.2,2322.3,2.42033994]
[1770097550132,13.86498797,2323.2,2322.3,2.42033994]
[1770097551830,12.13366931,2323.2,2322.3,2.42033994]
[1770097553234,0.57292605,2323.1,2322.3,2.42033994]
[1770097553427,3.10559536,2323.1,2322.3,2.42033994]
[1770097554637,2.53266931,2323.1,2322.3,2.42033994]
[1770097555137,12.70855296,2323.2,2322.3,2.42033994]
[1770097555442,3.10755296,2323.1,2322.3,2.42033994]
[1770097558444,3.10737111,2323.1,2322.3,2.42033994]
[1770097559742,0.57488365,2323.1,2322.3,2.42033994]
[1770097559941,3.10737111,2323.1,2322.3,2.42033994]
[1770097560340,0.57488365,2323.1,2322.3,2.42033994]
[1770097560740,0.59098902,2322.9,2321.9,4.97013228]
[1770097560944,0.59098902,2322.6,2321.7,2.3923598]
[1770097561241,0.59098902,2322.4,2321.7,2.3923598]
[1770097562343,9.712,2322.5,2321.7,2.3923598]
[1770097562545,10.30298902,2322.5,2321.7,2.3923598]
[1770097562739,0.59336653,2322.4,2321.5,2.3923598]
[1770097564946,0.57872497,2322.3,2321.2,2.39684388]
[1770097565146,0.57872497,2322.1,2321.2,2.39684388]
[1770097565744,0.57872497,2322.1,2320.8,2.3923598]
[1770097565745,0.57872497,2321.7,2320.8,2.3923598]
[1770097565936,1.73174539,2321.8,2320.8,2.3923598]
[1770097565937,10.29172497,2321.6,2320.8,2.3923598]
[1770097566141,9.713,2321.6,2320.8,2.3923598]
[1770097566746,9.71698169,2321.6,2320.8,2.39780741]
[1770097567046,0.00398169,2321.6,2320.8,2.39780741]
[1770097567948,2.53248746,2322.2,2320.8,2.39780741]
[1770097568149,14.55485409,2322.4,2320.8,2.39780741]
[1770097568846,14.55485409,2322.4,2320.8,2.61344741]
[1770097569046,9.71626197,2322.4,2321.1,2.3923598]
[1770097569443,0.00526197,2322.4,2321.4,2.3923598]
[1770097571248,0.00526197,2322.4,2321.7,2.3923598]
[1770097571542,2.527,2322.9,2321.7,2.3923598]
[1770097571747,0.79291952,2323.2,2321.7,2.3923598]
[1770097571948,7.027,2323.1,2321.7,2.3923598]
[1770097572352,7.0319605,2323.1,2321.7,2.3923598]
[1770097573052,0.59314125,2323.0,2321.7,2.3923598]
[1770097573753,7.0319605,2323.1,2321.7,2.3923598]
[1770097574155,7.62510175,2323.1,2321.7,2.3923598]
[1770097574652,0.59314125,2323.0,2321.7,2.3923598]
[1770097575752,0.59460017,2322.9,2321.7,2.3923598]
[1770097576351,44.78632997,2323.1,2321.7,2.3923598]
[1770097576352,9.56444796,2323.1,2321.7,2.3923598]
[1770097576551,9.56444796,2323.1,2321.9,2.3923598]
[1770097576755,7.0319605,2323.1,2321.9,2.3923598]
[1770097577253,7.0319605,2323.1,2322.1,2.3923598]
[1770097577254,0.0049605,2323.1,2322.1,2.3923598]
[1770097577455,0.0049605,2323.1,2322.2,2.3923598]
[1770097580457,0.0049605,2323.1,2322.2,2.6078698]
[1770097582358,2.53248746,2323.8,2322.4,2.49352053]
[1770097582857,3.11813581,2323.8,2322.4,2.49352053]
[1770097583458,0.00387472,2323.8,2322.6,2.49352053]
[1770097583655,0.00387472,2323.8,2322.6,2.49801568]
[1770097583958,9.49244581,2324.4,2323.0,2.49352053]
[1770097584159,0.58564835,2324.3,2323.0,2.49352053]
[1770097585062,0.59079012,2324.3,2323.0,2.49352053]
[1770097588162,0.00514177,2324.3,2323.0,2.70896053]
[1770097590662,0.54537471,2324.2,2323.0,2.70896053]
[1770097593960,0.00514177,2324.3,2323.0,2.70896053]
[1770097594160,0.00514177,2324.3,2323.2,2.49352053]
[1770097594360,0.00514177,2324.3,2323.4,2.49352053]
[1770097596360,0.00514177,2324.3,2323.4,2.70892053]
[1770097597572,13.28958338,2325.1,2323.6,2.49352053]
[1770097597767,0.54709592,2325.1,2323.6,2.70890053]
[1770097598663,0.55066955,2325.1,2323.6,2.70890053]
[1770097606977,0.00357363,2325.1,2323.9,2.49352053]
[1770097608572,0.00357363,2325.1,2323.9,2.70887053]
[1770097615185,0.00357363,2325.1,2324.2,2.35103956]
[1770097616585,0.55995679,2325.0,2324.2,2.35103956]
[1770097617187,0.00357363,2325.1,2324.2,2.35103956]
[1770097617386,2.53606109,2325.1,2324.2,2.35103956]
[1770097618186,0.00357363,2325.1,2324.2,2.35103956]
[1770097618887,9.718,2325.4,2324.2,2.35103956]
[1770097619083,9.96924337,2325.7,2324.2,2.35103956]
[1770097619084,2.53248746,2325.7,2324.5,2.56633956]
[1770097619284,2.53248746,2325.8,2324.5,2.56633956]
[1770097619986,2.53626575,2325.8,2324.5,2.57036189]
[1770097620177,0.00377829,2325.8,2324.7,2.35103956]
[1770097620586,2.53248746,2326.2,2325.0,2.35103956]
[1770097620796,6.83648746,2326.3,2325.0,2.35103956]
[1770097621487,6.84087409,2326.3,2325.0,2.35103956]
[1770097622289,0.59109234,2326.2,2325.0,2.35103956]
[1770097622487,6.84087409,2326.3,2325.0,2.35103956]
[1770097623084,2.53687409,2326.3,2325.0,2.35103956]
[1770097623287,0.00438663,2326.3,2325.4,2.56624956]
[1770097624184,2.524,2326.7,2325.4,2.56624956]
[1770097624490,2.524,2326.7,2325.6,2.35103956]
[1770097624983,2.53248746,2327.0,2325.6,2.35103956]
[1770097625189,0.72998801,2327.0,2325.6,2.35103956]
[1770097625387,0.73306431,2327.0,2325.8,2.35103956]
[1770097626990,0.0030763,2327.0,2325.8,2.35103956]
[1770097629688,0.0030763,2327.0,2326.1,2.35103956]
[1770097633197,4.302,2327.5,2326.1,2.35103956]
[1770097634197,0.61805393,2327.4,2326.1,2.35103956]
[1770097634899,0.58201875,2327.3,2326.1,2.35103956]
[1770097636399,0.58201875,2327.0,2325.8,2.35103956]
[1770097636695,0.58201875,2326.8,2325.8,2.35103956]
[1770097637293,0.59148105,2327.1,2325.8,2.35103956]
[1770097637494,9.761,2327.2,2325.8,2.35103956]
[1770097638497,10.35248105,2327.2,2325.8,2.35103956]
[1770097638698,0.59148105,2327.1,2325.8,2.35103956]
[1770097639592,9.761,2327.2,2325.8,2.35103956]
[1770097640599,9.761,2327.2,2325.8,2.56620956]
[1770097642201,0.55862259,2327.4,2325.8,2.56620956]
[1770097643895,0.53504731,2327.2,2325.8,2.56620956]
[1770097644100,0.53504731,2327.2,2325.8,2.35103956]
[1770097645404,0.21507,2327.0,2325.8,2.35103956]
[1770097645606,0.51741086,2326.9,2325.8,2.35103956]
[1770097646302,0.51741086,2326.8,2325.8,2.35103956]
[1770097646499,9.754,2326.7,2325.8,2.35103956]
[1770097647803,0.49706122,2326.6,2325.5,2.44709666]
[1770097648003,2.53248746,2326.9,2325.5,2.66758722]
[1770097648203,2.44451083,2327.0,2325.7,2.44709666]
[1770097648497,2.44451083,2327.0,2325.6,2.57777248]
[1770097648498,2.53248746,2327.3,2326.0,2.66225666]
[1770097648696,2.53248746,2327.4,2326.1,2.66224666]
[1770097649098,2.44451083,2327.3,2326.1,2.66224666]
[1770097649297,2.44451083,2327.2,2326.1,2.66224666]
[1770097649501,2.44451083,2327.1,2326.1,2.66224666]
[1770097650602,2.44451083,2326.5,2325.6,2.44709666]
[1770097650807,4.97699829,2326.5,2325.6,2.44709666]
[1770097651103,2.53248746,2326.4,2325.6,2.44709666]
[1770097651303,4.97699829,2326.5,2325.6,2.44709666]
[1770097651604,2.53248746,2326.4,2325.6,2.44709666]
[1770097652503,4.97699829,2326.4,2325.6,2.44709666]
[1770097653098,2.53248746,2326.4,2325.6,2.44709666]
[1770097653705,2.53248746,2326.6,2325.6,2.44709666]
[1770097654304,2.53248746,2326.7,2325.6,2.44709666]
[1770097654804,2.53248746,2326.7,2325.6,2.66228666]
[1770097655002,2.53248746,2326.7,2325.7,2.44709666]
[1770097655602,2.44451083,2326.6,2325.7,2.44709666]
[1770097656502,2.44451083,2326.6,2325.5,2.44709666]
[1770097656503,2.44451083,2326.5,2325.5,2.44709666]
[1770097656807,4.97699829,2326.4,2325.5,2.44709666]
[1770097658009,2.53248746,2326.4,2325.5,2.44709666]
[1770097659309,4.97699829,2326.4,2325.5,2.44709666]
[1770097665410,2.44451083,2326.0,2325.0,2.44709666]
[1770097665610,2.44451083,2325.9,2325.0,2.44709666]
[1770097665805,2.44451083,2325.8,2325.0,2.44709666]
[1770097666009,2.4481439,2325.8,2325.0,2.44709666]
[1770097666709,9.826,2325.7,2324.7,2.44709666]
[1770097666916,2.44451083,2325.6,2324.7,2.44709666]
[1770097671920,9.826,2325.7,2324.7,2.44709666]
[1770097672212,0.00363307,2325.8,2324.7,2.44709666]
[1770097672213,0.00363307,2325.8,2324.7,5.11468388]
[1770097672519,0.00363307,2325.8,2324.8,5.19249117]
[1770097672718,0.00363307,2325.8,2324.9,2.39944869]
[1770097675519,0.00363307,2325.8,2325.0,2.39944869]
[1770097678022,2.37065744,2325.8,2325.0,2.39944869]
[1770097680726,0.00363307,2325.8,2325.0,2.39944869]
[1770097684026,2.53248746,2326.3,2325.1,2.39944869]
[1770097684227,2.53248746,2326.5,2325.4,2.39944869]
[1770097685330,2.53750386,2326.5,2325.4,2.39944869]
[1770097687432,0.0050164,2326.5,2325.4,2.39944869]
[1770097687733,0.0050164,2326.5,2325.4,4.97722117]
[1770097687932,0.0050164,2326.5,2325.5,2.39944869]
[1770097689835,0.0050164,2326.5,2325.5,4.97722117]
[1770097690132,0.0050164,2326.5,2325.6,2.39944869]
[1770097691232,0.0050164,2326.5,2325.6,2.61463869]
[1770097691434,2.53248746,2326.9,2325.9,2.39944869]
[1770097691633,2.53248746,2327.0,2325.9,2.39944869]
[1770097692234,4.89951183,2327.1,2325.9,2.39944869]
[1770097692534,4.9027073,2327.1,2325.9,2.39944869]
[1770097692831,2.36702437,2327.0,2325.9,2.39944869]
[1770097693036,4.9027073,2327.1,2325.9,2.39944869]
[1770097694834,2.37021984,2327.1,2325.9,2.39944869]
[1770097695536,0.00319547,2327.1,2325.9,2.39944869]
[1770097695837,2.37021984,2327.1,2325.9,2.39944869]
[1770097699136,0.00319547,2327.1,2325.9,2.61461869]
[1770097700139,2.37021984,2327.1,2325.9,2.61461869]
[1770097706446,4.64498666,2327.0,2325.9,2.61461869]
[1770097706743,4.64498666,2327.0,2326.0,2.47780277]
[1770097706942,6.9911928,2327.0,2326.0,2.47780277]
[1770097708342,2.34620614,2326.9,2326.0,2.47780277]
[1770097708644,4.66608901,2326.8,2326.0,2.47780277]
[1770097713945,2.34620614,2326.7,2326.0,2.47780277]
[1770097714251,4.72627675,2326.6,2326.0,2.47780277]
[1770097714747,2.34620614,2326.5,2325.9,4.57777248]
[1770097714940,2.34620614,2326.5,2325.9,2.0]
[1770097715145,4.49827414,2326.4,2325.9,4.47780277]
[1770097715439,4.49827414,2326.5,2326.0,2.47780277]
[1770097715844,2.34620614,2326.6,2325.9,2.0]
[1770097716045,2.34620614,2326.4,2325.9,2.0]
[1770097716544,4.53342533,2326.3,2325.9,2.0]
[1770097716743,4.53342533,2326.3,2326.0,2.47780277]
[1770097717148,4.39389073,2326.3,2326.0,2.47780277]
[1770097718947,4.8786936,2326.9,2326.0,2.47780277]
[1770097719146,4.8786936,2326.9,2326.1,2.47780277]
[1770097719348,4.73408538,2326.6,2326.1,2.47780277]
[1770097719649,4.8786936,2326.9,2326.1,2.47780277]
[1770097719844,2.34620614,2326.8,2326.1,2.47780277]
[1770097720040,4.73408538,2326.6,2326.1,2.47780277]
[1770097720247,7.08029152,2326.8,2326.1,2.47780277]
[1770097720545,2.34620614,2326.7,2326.0,2.57777248]
[1770097720748,6.9989749,2326.7,2325.9,7.05557525]
[1770097721143,6.9989749,2326.7,2326.0,2.57777248]
[1770097721448,6.9989749,2326.7,2326.1,2.47780277]
[1770097721649,4.65276876,2326.7,2326.1,2.47780277]
[1770097721848,6.9989749,2326.7,2326.1,2.47780277]
[1770097723351,2.34620614,2326.6,2325.9,4.57777248]
[1770097723651,2.34620614,2326.4,2325.9,4.57777248]
[1770097723950,2.34620614,2326.4,2325.9,7.05557525]
[1770097724350,2.34620614,2326.7,2325.9,7.05557525]
[1770097724748,4.70647197,2326.7,2326.0,2.47780277]
[1770097724951,4.70647197,2326.7,2326.1,2.47780277]
[1770097726053,1.89441501,2326.7,2326.2,5.74091248]
[1770097726254,0.00319547,2327.1,2326.2,5.74446481]
[1770097726455,0.00319547,2327.1,2326.3,2.57777248]
[1770097726652,4.53007688,2327.0,2326.3,2.57777248]
[1770097726851,4.53007688,2327.0,2326.3,2.57933904]
[1770097727054,4.53007688,2327.0,2326.4,0.00156656]
[1770097730359,7.05942442,2327.0,2326.3,2.57777248]
[1770097731153,2.52939524,2326.9,2326.3,2.57777248]
[1770097731352,2.52939524,2326.9,2326.2,5.52932481]
[1770097731556,2.52939524,2326.7,2325.9,4.57777248]
[1770097731955,7.29096509,2326.6,2325.9,4.57857492]
[1770097732156,7.29096509,2326.6,2326.0,2.57857492]
[1770097732458,2.52939524,2326.6,2326.0,2.57857492]
[1770097732653,2.52939524,2326.6,2326.0,2.58281903]
[1770097733257,2.52939524,2326.6,2326.0,2.58201659]
[1770097736359,2.53248746,2327.0,2326.2,0.67053799]
[1770097736553,2.53568293,2327.1,2326.2,0.67053799]
[1770097736860,4.95178088,2326.9,2326.2,0.21514]
[1770097737060,4.95178088,2327.0,2326.2,0.21514]
[1770097737255,2.53568293,2327.1,2326.2,0.21514]
[1770097737451,4.68923771,2327.0,2326.2,0.21514]
[1770097738461,2.36343775,2326.9,2326.2,0.21514]
[1770097738758,4.8742836,2326.8,2326.2,0.21514]
[1770097738960,7.23772135,2326.8,2326.2,0.21514]
[1770097742464,2.36343775,2326.7,2326.3,1.72563847]
[1770097743364,2.36343775,2327.0,2326.3,1.72563847]
[1770097743566,2.36343775,2327.0,2326.5,1.72563847]
[1770097743764,2.36343775,2326.9,2326.3,1.94076847]
[1770097745966,2.36343775,2326.9,2326.5,1.72563847]
[1770097746167,2.36663322,2327.1,2326.5,1.72563847]
[1770097746468,7.01737062,2327.0,2326.5,1.72563847]
[1770097746869,2.36343775,2326.9,2326.5,1.72563847]
[1770097750073,0.00319547,2327.1,2326.5,2.25489133]
[1770097750275,2.36663322,2327.1,2326.7,1.72563847]
[1770097750576,4.50150608,2327.0,2326.7,1.72563847]
[1770097750977,2.36663322,2327.1,2326.7,1.72563847]
[1770097751275,4.78832536,2327.0,2326.7,1.72563847]
[1770097751672,2.53248746,2327.5,2326.7,1.72563847]
[1770097751867,2.53248746,2327.5,2326.6,2.57777248]
[1770097752072,4.78832536,2327.3,2326.6,2.57777248]
[1770097752379,2.53795959,2327.5,2326.6,2.57777248]
[1770097752579,2.53795959,2327.5,2326.7,1.72563847]
[1770097752878,4.90726454,2327.3,2326.7,1.72563847]
[1770097753179,2.36343775,2327.3,2326.7,1.72563847]
[1770097753676,2.36343775,2327.1,2326.7,1.72563847]
[1770097756372,0.00547213,2327.5,2326.9,2.46769429]
[1770097756579,2.36890988,2327.5,2327.2,1.72563847]
[1770097756774,2.36890988,2327.5,2327.0,0.21507]
[1770097757674,2.36343775,2327.3,2327.0,0.21507]
[1770097758172,2.36343775,2327.1,2326.8,5.61377248]
[1770097758971,2.36343775,2327.3,2326.8,5.61377248]
[1770097759179,2.36343775,2327.3,2326.8,3.036]
[1770097759480,6.84331573,2327.2,2326.8,3.036]
[1770097759879,2.36343775,2327.2,2326.8,3.036]
[1770097762275,2.44516586,2327.4,2326.9,1.72563847]
[1770097762680,7.17487091,2327.4,2326.9,1.72563847]
[1770097762880,2.44516586,2327.3,2326.9,1.72563847]
[1770097763882,2.44516586,2327.3,2327.0,5.64184974]
[1770097767887,2.44516586,2327.1,2326.8,5.82886248]
[1770097768088,2.44516586,2327.1,2326.8,3.25109]
[1770097768989,2.44516586,2327.1,2326.5,2.57777248]
[1770097769191,2.44516586,2327.1,2326.6,3.107]
[1770097770091,2.44516586,2327.1,2326.6,5.42925516]
[1770097770990,2.44516586,2327.1,2326.7,2.32225516]
[1770097771491,2.44516586,2327.4,2326.7,6.62566611]
[1770097771690,2.44516586,2327.4,2326.8,2.57777248]
[1770097771891,7.17000476,2327.4,2326.8,2.57777248]
[1770097773090,2.44516586,2327.3,2326.7,2.79286248]
[1770097773293,2.44516586,2327.3,2326.7,0.21509]
[1770097773485,2.44516586,2327.1,2326.7,0.21509]
[1770097773689,2.44516586,2327.0,2326.4,1.43250752]
[1770097773895,2.44516586,2326.9,2326.2,7.20803313]
[1770097774394,2.44516586,2326.7,2326.2,3.34614]
[1770097774692,2.44516586,2326.7,2326.2,5.66839516]
[1770097775989,2.44516586,2326.5,2326.2,0.21514]
[1770097780289,2.53248746,2327.4,2326.3,2.32225516]
[1770097780486,0.00547213,2327.5,2326.6,2.32225516]